bitfinex/quotes_SOLUSD_20251013
["timestamp","ask_amount","ask_price","bid_price","bid_amount"]
[1760331642196,57.77120295,196.45,196.44,1e-08]
[1760331642376,10.87647521,196.42,196.41,1e-08]
[1760331642579,37.60169768,196.42,196.41,1e-08]
[1760331642892,43.40282892,196.42,196.41,1e-08]
[1760331645401,45.44609508,196.42,196.41,1e-08]
[1760331646284,10.87647521,196.35,196.34,1e-08]
[1760331646789,10.87647521,196.36,196.34,1e-08]
[1760331647114,11.55647521,196.35,196.34,1e-08]
[1760331647288,18.28169769,196.35,196.34,1e-08]
[1760331647590,31.67647521,196.32,196.31,1e-08]
[1760331648204,36.87396447,196.32,196.31,1e-08]
[1760331648901,36.87396447,196.32,196.3,1e-08]
[1760331648902,37.55396447,196.32,196.3,1e-08]
[1760331649314,11.55647521,196.31,196.3,1e-08]
[1760331649694,17.16271013,196.31,196.3,1e-08]
[1760331650112,21.25783356,196.31,196.3,1e-08]
[1760331650284,26.35181756,196.31,196.3,1e-08]
[1760331650488,46.35181755,196.31,196.3,1e-08]
[1760331651306,26.35181756,196.31,196.3,1e-08]
[1760331651499,46.35181755,196.31,196.3,1e-08]
[1760331651805,15.97045921,196.31,196.3,1e-08]
[1760331652012,15.97045921,196.31,196.3,0.69000001]
[1760331652200,15.97045921,196.31,196.3,1e-08]
[1760331654517,15.97045921,196.31,196.3,0.69000001]
[1760331656513,15.97045921,196.31,196.3,1e-08]
[1760331657218,15.97045921,196.31,196.3,0.69000001]
[1760331657411,15.97045921,196.31,196.3,1e-08]
[1760331658322,16.65045921,196.31,196.3,1e-08]
[1760331659324,15.97045921,196.31,196.3,1e-08]
[1760331660001,15.97045921,196.31,196.3,0.69000001]
[1760331660203,15.97045921,196.31,196.3,1e-08]
[1760331660622,15.97045921,196.31,196.3,0.69000001]
[1760331661326,5.093984,196.31,196.3,0.69000001]
[1760331661544,0.10376473,196.32,196.3,0.69000001]
[1760331661712,0.10376473,196.32,196.31,0.69]
[1760331661924,20.8,196.31,196.3,0.69000001]
[1760331662426,0.10376473,196.32,196.3,0.69000001]
[1760331662605,20.8,196.31,196.3,0.69000001]
[1760331664829,25.99754743,196.32,196.3,0.69000001]
[1760331665032,25.99754743,196.32,196.31,0.69]
[1760331665722,20.90376473,196.32,196.31,0.69]
[1760331666316,25.99748926,196.32,196.31,0.69]
[1760331666717,20.90376473,196.32,196.31,0.69]
[1760331666918,0.10376473,196.32,196.31,0.69]
[1760331667227,0.09677188,196.35,196.32,10.87647521]
[1760331667518,5.20336482,196.36,196.33,0.69]
[1760331667723,20.8,196.34,196.33,0.69]
[1760331667934,0.11066256,196.36,196.33,0.69]
[1760331668335,0.10212384,196.34,196.33,0.69]
[1760331671713,0.10212384,196.34,196.3,0.69000001]
[1760331672013,5.1953295,196.34,196.31,0.69]
[1760331672329,0.10212384,196.34,196.31,0.69]
[1760331672525,0.10212384,196.34,196.31,80.98623527]
[1760331672825,5.19533359,196.34,196.32,0.69]
[1760331673031,0.10212384,196.34,196.32,80.98623527]
[1760331673333,0.10212384,196.34,196.33,0.69]
[1760331673525,0.10212384,196.34,196.33,80.98623527]
[1760331674022,0.10212384,196.34,196.33,81.01623527]
[1760331674413,0.10212384,196.34,196.33,88.50326144]
[1760331674609,0.10212384,196.34,196.33,81.01623527]
[1760331677827,0.10212384,196.34,196.33,80.29623527]
[1760331678630,0.10212384,196.34,196.33,81.01623527]
[1760331679635,5.1953295,196.34,196.33,80.29623527]
[1760331680028,18.63834365,196.34,196.3,80.29623528]
[1760331680734,17.92834365,196.34,196.3,81.01623528]
[1760331681634,18.63834365,196.34,196.3,80.29623528]
[1760331683347,20.8,196.31,196.3,1e-08]
[1760331683521,31.67647521,196.31,196.3,1e-08]
[1760331683717,37.48045921,196.31,196.3,1e-08]
[1760331686942,36.77045921,196.31,196.3,1e-08]
[1760331687118,37.48045921,196.31,196.3,1e-08]
[1760331688223,37.58026389,196.31,196.3,1e-08]
[1760331692428,20.8,196.19,196.17,0.72]
[1760331693726,5.09735956,196.18,196.11,0.2]
[1760331693945,5.09735956,196.18,196.15,0.72]
[1760331694449,20.8,196.19,196.16,0.72]
[1760331694751,0.71,196.26,196.16,0.72]
[1760331694959,31.67647521,196.21,196.13,0.72]
[1760331695134,32.38647521,196.21,196.13,0.72]
[1760331695649,17.83893984,196.2,196.11,0.92]
[1760331695840,20.8,196.16,196.11,0.92]
[1760331696036,20.8,196.16,196.11,0.2]
[1760331696243,20.8,196.16,196.12,0.72]
[1760331696441,20.8,196.16,196.13,0.72]
[1760331696641,5.09657784,196.22,196.14,0.72]
[1760331696853,11.58647521,196.21,196.14,0.72]
[1760331697236,20.8,196.18,196.14,0.72]
[1760331697755,20.8,196.18,196.15,0.72]
[1760331698052,5.09761941,196.17,196.15,0.72]
[1760331698256,5.09761941,196.17,196.16,0.72]
[1760331698434,17.84166793,196.17,196.12,0.72]
[1760331698766,5.09761941,196.17,196.13,0.72]
[1760331699134,20.8,196.14,196.13,0.72]
[1760331699545,20.8,196.14,196.11,0.2]
[1760331699957,5.09865905,196.13,196.11,0.2]
[1760331700363,0.71,196.12,196.11,0.2]
[1760331700659,5.09865905,196.13,196.11,0.2]
[1760331700958,7.76436876,196.13,196.11,0.2]
[1760331701160,8.47436876,196.13,196.11,0.2]
[1760331701575,7.76436876,196.13,196.11,0.2]
[1760331702064,8.47436876,196.13,196.11,0.2]
[1760331702263,11.58647521,196.12,196.11,0.2]
[1760331703570,10.87647521,196.12,196.11,0.2]
[1760331703778,11.54647521,196.12,196.11,0.2]
[1760331703949,16.64539423,196.12,196.11,0.2]
[1760331704566,15.97539423,196.12,196.11,0.2]
[1760331704776,2.66570971,196.13,196.11,0.9]
[1760331704958,7.76438996,196.13,196.11,0.2]
[1760331705165,0.71,196.12,196.11,0.2]
[1760331705572,28.56438996,196.13,196.11,0.2]
[1760331705775,29.27438996,196.13,196.11,0.2]
[1760331706078,28.56438996,196.13,196.11,0.2]
[1760331706985,21.51,196.12,196.11,0.2]
[1760331707160,32.38647521,196.12,196.11,0.2]
[1760331708078,37.48539423,196.12,196.11,0.2]
[1760331708274,37.58612582,196.12,196.11,0.2]
[1760331709066,36.87612582,196.12,196.11,0.2]
[1760331709579,37.58612582,196.12,196.11,0.2]
[1760331710084,10.87647521,196.11,196.1,0.2]
[1760331710258,31.67647521,196.08,196.07,0.2]
[1760331710767,32.38647521,196.08,196.07,0.2]
[1760331711152,20.8,196.08,196.07,0.2]
[1760331712261,5.09986921,196.09,196.07,0.9]
[1760331712461,25.89986921,196.09,196.07,0.9]
[1760331714093,25.89986921,196.09,196.07,0.2]
[1760331714094,26.60986921,196.09,196.07,0.2]
[1760331714278,25.89986921,196.09,196.07,0.9]
[1760331714660,25.89986921,196.09,196.07,0.2]
[1760331715556,32.38647521,196.08,196.07,0.2]
[1760331716179,32.38647521,196.08,196.07,1e-08]
[1760331716381,10.87647521,196.07,196.06,1e-08]
[1760331716756,11.58647521,196.07,196.06,1e-08]
[1760331717572,16.68669451,196.07,196.06,1e-08]
[1760331717972,31.67647521,196.03,196.02,1e-08]
[1760331718371,32.38647521,196.03,196.02,1e-08]
[1760331718568,34.43340098,196.03,196.02,1e-08]
[1760331719577,39.53466099,196.03,196.02,1e-08]
[1760331720692,31.67647521,195.98,195.97,1e-08]
[1760331721182,32.38647521,195.98,195.97,1e-08]
[1760331721387,34.43392485,195.98,195.97,1e-08]
[1760331721763,39.53648633,195.98,195.97,1e-08]
[1760331721970,20.8,195.94,195.89,0.10000001]
[1760331722278,20.8,195.94,195.86,0.2]
[1760331723768,20.8,195.9,195.86,0.2]
[1760331723962,20.8,195.9,195.86,0.9]
[1760331724168,20.8,195.9,195.86,0.2]
[1760331724883,21.51,195.9,195.86,0.2]
[1760331725598,20.8,195.9,195.86,0.2]
[1760331726394,20.8,195.87,195.86,0.2]
[1760331727690,20.8,195.91,195.86,5.59605417]
[1760331727869,20.8,195.9,195.87,4.69605417]
[1760331728076,20.8,195.9,195.88,0.7]
[1760331728382,20.89884464,195.89,195.88,0.7]
[1760331728576,0.09884464,195.89,195.88,4.69605417]
[1760331728993,0.09884464,195.89,195.86,4.89605417]
[1760331729196,0.09884464,195.89,195.87,0.7]
[1760331729392,26.00375457,195.89,195.86,0.2]
[1760331729597,26.71375457,195.89,195.86,0.2]
[1760331729991,26.00375457,195.89,195.86,0.9]
[1760331730490,26.00375457,195.89,195.86,0.2]
[1760331731083,2.66866256,195.88,195.87,0.7]
[1760331731300,0.09884464,195.89,195.86,80.6]
[1760331731608,0.09884464,195.89,195.86,98.46975425]
[1760331731796,0.09884464,195.89,195.87,0.7]
[1760331732099,0.09884464,195.89,195.88,0.7]
[1760331732398,0.09884464,195.89,195.88,11.89106902]
[1760331732794,0.09884464,195.89,195.88,16.99623544]
[1760331732994,0.09884464,195.89,195.88,5.80516642]
[1760331733302,0.09884464,195.89,195.88,16.99623544]
[1760331733711,0.09884464,195.89,195.88,231.49623544]
[1760331734621,1e-08,195.89,195.88,10.87647521]
[1760331734789,1e-08,195.89,195.86,17.18671933]
[1760331734979,1e-08,195.89,195.86,11.39106902]
[1760331735183,1e-08,195.89,195.87,0.69]
[1760331735396,1e-08,195.89,195.88,11.19106902]
[1760331735984,1e-08,195.89,195.87,0.69]
[1760331735985,1e-08,195.89,195.86,0.2]
[1760331736191,1e-08,195.89,195.86,11.39106902]
[1760331737201,1e-08,195.89,195.86,0.2]
[1760331737403,20.80000001,195.89,195.86,0.2]
[1760331737582,0.66,195.88,195.86,0.2]
[1760331737891,21.46,195.87,195.86,0.2]
[1760331739001,20.8,195.87,195.86,0.2]
[1760331740996,31.67647521,195.86,195.82,0.2]
[1760331741196,31.67647521,195.86,195.77,0.2]
[1760331741500,31.67647521,195.81,195.77,0.2]
[1760331741707,36.78346668,195.81,195.77,0.2]
[1760331741905,37.44346668,195.81,195.77,0.2]
[1760331742291,50.21094535,195.81,195.52,2.66930126]
[1760331742503,10.87647521,195.75,195.55,19.99999999]
[1760331742698,20.8,195.72,195.56,20.68999999]
[1760331742907,20.8,195.72,195.65,11.19106902]
[1760331743209,20.8,195.72,195.67,11.19106902]
[1760331743410,20.8,195.74,195.69,11.19106902]
[1760331743710,20.8,195.74,195.71,11.19106902]
[1760331743892,15.98416609,195.79,195.72,0.69]
[1760331743893,20.8,195.79,195.72,0.69]
[1760331744213,11.53647521,195.78,195.71,11.19106902]
[1760331744388,20.8,195.73,195.66,0.2]
[1760331744788,21.46,195.73,195.66,5.31086186]
[1760331745319,21.46,195.73,195.66,0.2]
[1760331745608,5.10933987,195.72,195.66,0.2]
[1760331745808,20.8,195.69,195.66,0.2]
[1760331746112,5.10921183,195.73,195.67,0.69]
[1760331746410,20.8,195.7,195.67,0.69]
[1760331746707,20.8,195.7,195.66,0.2]
[1760331746912,20.8,195.7,195.66,0.89]
[1760331747109,21.46,195.7,195.66,0.2]
[1760331747410,20.8,195.7,195.66,0.2]
[1760331748013,20.8,195.7,195.66,6.00084307]
[1760331748309,0.10400994,195.67,195.66,5.31084307]
[1760331748506,0.10400994,195.67,195.66,16.50191209]
[1760331748889,0.10400994,195.67,195.66,17.19191209]
[1760331749716,0.10364929,195.68,195.67,10.87647521]
[1760331749923,0.10364929,195.68,195.67,11.56647521]
[1760331750228,0.10846133,195.71,195.67,29.45373436]
[1760331750521,0.66,195.82,195.7,11.19106902]
[1760331751119,0.66,195.82,195.71,0.69]
[1760331751337,0.66,195.85,195.72,10.87647521]
[1760331751493,0.66,195.85,195.73,11.88106902]
[1760331751698,0.66,195.85,195.74,0.69]
[1760331751926,21.46,195.85,195.74,0.69]
[1760331752215,21.46,195.85,195.74,5.79881781]
[1760331752516,0.66,195.85,195.74,16.67529302]
[1760331752714,20.8,195.84,195.74,16.67529302]
[1760331753223,21.46,195.85,195.74,16.67529302]
[1760331753416,20.8,195.85,195.75,11.19106902]
[1760331753716,0.66,195.86,195.75,11.88106902]
[1760331753921,0.66,195.86,195.75,22.75754423]
[1760331753922,1e-08,195.76,195.75,22.75754423]
[1760331754422,1e-08,195.76,195.75,47.86610105]
[1760331755412,1e-08,195.76,195.75,146.56610105]
[1760331755727,0.66,195.9,195.76,10.87647521]
[1760331755936,0.66,195.9,195.75,71.62829106]
[1760331755937,0.66,195.9,195.84,7.515558]
[1760331756148,20.8,195.89,195.84,7.515558]
[1760331756347,0.66,195.88,195.85,5.10594842]
[1760331757734,0.66,195.87,195.77,0.69]
[1760331757925,0.66,195.87,195.78,5.10777403]
[1760331758107,20.8,195.84,195.78,5.10777403]
[1760331758306,0.66,195.83,195.78,5.10777403]
[1760331758529,0.66,195.82,195.78,5.10777403]
[1760331758728,0.66,195.81,195.78,5.10777403]
[1760331758915,0.66,195.81,195.76,5.10829587]
[1760331759528,0.66,195.81,195.76,5.79829587]
[1760331759927,0.66,195.81,195.76,5.10829587]
[1760331760534,0.66,195.81,195.76,5.79829587]
[1760331760735,0.66,195.84,195.77,0.69]
[1760331760942,0.66,195.84,195.76,17.87903555]
[1760331761120,0.66,195.83,195.76,5.10829587]
[1760331761320,0.66,195.82,195.76,5.10829587]
[1760331762214,0.66,195.81,195.75,5.10854353]
[1760331762615,0.66,195.8,195.74,5.10880927]
[1760331762818,0.66,195.8,195.7,5.10961244]
[1760331762819,0.66,195.79,195.7,5.10961244]
[1760331763055,0.66,195.81,195.75,7.515558]
[1760331763517,0.66,195.81,195.73,8.205558]
[1760331763838,20.8,195.83,195.75,7.515558]
[1760331764038,20.8,195.83,195.77,7.515558]
[1760331764438,3.34950826,195.82,195.77,7.515558]
[1760331764736,0.68,195.81,195.76,5.10829587]
[1760331764944,0.68,195.8,195.76,5.10829587]
[1760331765132,21.48,195.79,195.74,5.1085756]
[1760331765340,0.68,195.78,195.74,5.1085756]
[1760331766226,20.8,195.79,195.74,5.1085756]
[1760331766735,21.48,195.79,195.74,5.7885756]
[1760331766936,2.66950826,195.82,195.74,18.56062014]
[1760331767245,20.8,195.81,195.76,7.515558]
[1760331767545,0.68,195.8,195.74,5.1085756]
[1760331767845,20.8,195.79,195.74,5.1085756]
[1760331768146,0.68,195.78,195.72,5.10908072]
[1760331768352,0.09551652,195.75,195.72,5.10908072]
[1760331768932,0.09551652,195.75,195.71,12.77349639]
[1760331768933,0.09551652,195.75,195.71,17.88309733]
[1760331769143,0.09551652,195.75,195.71,18.56309733]
[1760331769635,0.09551652,195.75,195.72,0.68]
[1760331771544,0.09551652,195.75,195.73,5.10907883]
[1760331772358,0.77551652,195.75,195.72,5.10930798]
[1760331772544,0.68,195.74,195.7,5.10975672]
[1760331772745,0.68,195.73,195.66,8.395558]
[1760331772927,21.48,195.72,195.66,0.2]
[1760331773346,26.5895234,195.72,195.66,5.31088858]
[1760331773630,20.8,195.72,195.66,5.31088858]
[1760331773842,20.8,195.72,195.66,5.99088858]
[1760331774166,21.48,195.72,195.66,5.99088858]
[1760331774552,20.8,195.72,195.66,26.28371326]
[1760331775430,20.8,195.72,195.68,7.515558]
[1760331776057,0.09551652,195.75,195.7,7.515558]
[1760331776247,20.8,195.74,195.7,7.515558]
[1760331777156,21.48,195.74,195.71,5.10960094]
[1760331777655,0.68,195.74,195.71,5.10960094]
[1760331778044,20.89551652,195.75,195.72,8.195558]
[1760331778254,0.09551652,195.75,195.72,8.195558]
[1760331778652,0.09551652,195.75,195.74,7.515558]
[1760331779342,0.09551652,195.75,195.74,12.62437581]
[1760331779928,0.09551652,195.75,195.74,13.30437581]
[1760331780139,0.09551652,195.75,195.74,5.78881781]
[1760331780349,0.09551652,195.75,195.74,13.30437581]
[1760331780556,0.09551652,195.75,195.72,5.10917836]
[1760331780759,0.09551652,195.75,195.7,5.10986203]
[1760331781066,0.09551652,195.75,195.71,0.68]
[1760331781255,0.09551652,195.75,195.72,5.10933987]
[1760331781553,0.09551652,195.75,195.72,5.78933987]
[1760331781738,0.09551652,195.75,195.73,0.68]
[1760331781945,0.09551652,195.75,195.74,0.68]
[1760331783241,0.09551652,195.75,195.74,12.62437581]
[1760331783441,0.09551652,195.75,195.74,13.30437581]
[1760331785137,0.09551652,195.75,195.74,12.62437581]
[1760331785338,0.09551652,195.75,195.74,13.30437581]
[1760331785960,0.10318115,195.8,195.79,79.89115941]
[1760331786147,0.78318115,195.8,195.79,79.89115941]
[1760331786347,0.10318115,195.8,195.79,87.40671741]
[1760331786547,0.10318115,195.8,195.79,88.08671741]
[1760331786763,0.10318115,195.8,195.79,8.195558]
[1760331787249,0.10318115,195.8,195.79,13.30307115]
[1760331787454,0.10372466,195.82,195.8,10.87647521]
[1760331787765,0.10372466,195.82,195.8,8.195558]
[1760331788468,0.1948364,195.81,195.8,8.195558]
[1760331788764,0.1948364,195.81,195.8,7.515558]
[1760331788967,0.1948364,195.81,195.8,8.195558]
[1760331789177,0.09305107,195.81,195.8,8.195558]
[1760331789464,0.09305107,195.81,195.8,5.78725229]
[1760331789663,0.77305107,195.81,195.8,5.10725229]
[1760331790140,0.77305107,195.81,195.79,213.99115941]
[1760331790340,0.68,195.8,195.79,213.99115941]
[1760331790652,0.09305107,195.81,195.79,219.09867256]
[1760331790854,0.09305107,195.81,195.79,226.61423056]
[1760331791361,0.09305107,195.81,195.8,13.30281029]
[1760331791566,0.09305107,195.81,195.8,12.62281029]
[1760331793356,0.10234168,195.82,195.81,79.79810834]
[1760331793556,0.10234168,195.82,195.81,92.42065781]
[1760331794568,0.10234168,195.82,195.81,93.11065781]
[1760331795157,0.10234168,195.82,195.81,92.42065781]
[1760331795555,0.10234168,195.82,195.81,93.11065781]
[1760331796270,0.10234168,195.82,195.81,92.42065781]
[1760331797472,0.10234168,195.82,195.81,93.11065781]
[1760331798069,0.10234168,195.82,195.81,92.42065781]
[1760331798670,0.10234168,195.82,195.81,13.31254947]
[1760331798875,0.09280942,195.83,195.82,10.87647521]
[1760331799179,0.09280942,195.83,195.82,19.08203321]
[1760331799470,1e-08,195.83,195.82,153.18203321]
[1760331799859,1e-08,195.83,195.82,158.28876388]
[1760331800867,0.09877844,195.85,195.82,171.05559055]
[1760331801062,0.09877844,195.85,195.84,7.515558]
[1760331801272,0.09877844,195.85,195.82,151.97355734]
[1760331801457,0.09877844,195.85,195.84,7.515558]
[1760331801868,0.09877844,195.85,195.84,12.62176715]
[1760331802767,0.75877844,195.85,195.83,12.62198157]
[1760331802957,0.66,195.84,195.83,12.62198157]
[1760331803159,0.66,195.84,195.83,5.10642357]
[1760331803980,0.66,195.84,195.81,5.10699147]
[1760331804191,0.66,195.84,195.81,12.62254947]
[1760331804475,0.09877844,195.85,195.82,8.205558]
[1760331804677,0.09877844,195.85,195.84,7.515558]
[1760331805068,0.09877844,195.85,195.84,8.205558]
[1760331805869,0.09877844,195.85,195.84,13.31176715]
[1760331808363,0.1962224,195.85,195.84,13.31176715]
[1760331809184,0.09744396,195.85,195.84,13.31176715]
[1760331809377,0.09744396,195.85,195.84,5.79620915]
[1760331809576,0.09744396,195.85,195.84,13.31176715]
[1760331810568,0.09744396,195.85,195.84,5.79620915]
[1760331810769,0.09744396,195.85,195.84,13.31176715]
[1760331811174,0.0996756,195.89,195.88,79.4028163]
[1760331811472,0.7596756,195.89,195.88,79.4028163]
[1760331812384,0.7596756,195.89,195.84,95.17401339]
[1760331812569,0.66,195.88,195.85,5.10594842]
[1760331812769,0.66,195.87,195.85,5.10594842]
[1760331812982,0.66,195.87,195.85,84.50876472]
[1760331813870,0.0996756,195.89,195.85,84.50876472]
[1760331814075,0.66,195.88,195.78,5.10777403]
[1760331814282,20.8,195.8,195.71,12.77400235]
[1760331814481,0.66,195.79,195.72,3.00567422]
[1760331814683,20.8,195.8,195.74,3.00567422]
[1760331814889,21.46,195.8,195.76,3.00567422]
[1760331815071,0.66,195.79,195.75,3.00567422]
[1760331815386,0.66,195.78,195.76,3.00567422]
[1760331815590,0.66,195.78,195.76,7.52249395]
[1760331815981,20.8,195.82,195.76,7.52249395]
[1760331816182,21.46,195.81,195.77,7.52249395]
[1760331816492,0.66,195.8,195.76,7.52249395]
[1760331816790,0.66,195.79,195.76,7.52249395]
[1760331817586,0.66,195.79,195.77,5.10803493]
[1760331818375,20.8,195.8,195.77,5.10803493]
[1760331818689,21.46,195.8,195.77,16.31317869]
[1760331818871,0.66,195.8,195.77,16.31317869]
[1760331819794,20.8,195.81,195.77,16.31317869]
[1760331820184,0.66,195.8,195.77,16.31317869]
[1760331820495,0.66,195.79,195.77,5.10803493]
[1760331821491,0.66,195.78,195.75,84.51136223]
[1760331821703,0.66,195.77,195.75,84.51136223]
[1760331821997,0.66,195.82,195.76,11.89514376]
[1760331822191,0.66,195.82,195.78,11.20514376]
[1760331822594,0.66,195.81,195.78,11.20514376]
[1760331824199,0.68,195.8,195.76,79.4028163]
[1760331824497,21.52,195.79,195.76,79.4028163]
[1760331824802,0.72,195.78,195.7,11.20514376]
[1760331824972,0.72,195.77,195.71,11.20514376]
[1760331825177,20.8,195.79,195.73,11.20514376]
[1760331825379,20.8,195.79,195.75,11.20514376]
[1760331825701,20.8,195.77,195.74,16.31386634]
[1760331826195,0.72,195.78,195.74,16.31386634]
[1760331826399,20.8,195.83,195.76,11.20514376]
[1760331826598,20.8,195.82,195.78,11.20514376]
[1760331826979,21.52,195.82,195.78,11.20514376]
[1760331827979,21.52,195.82,195.78,16.31285452]
[1760331827980,0.72,195.82,195.78,16.31285452]
[1760331828396,0.09456301,195.79,195.78,16.31285452]
[1760331828594,0.09456301,195.79,195.77,16.31314259]
[1760331829101,0.09456301,195.79,195.75,5.10840402]
[1760331829400,0.72,195.78,195.73,11.20514376]
[1760331829598,0.72,195.77,195.73,11.20514376]
[1760331829783,0.72,195.77,195.74,11.20514376]
[1760331829983,0.09456301,195.79,195.75,5.10855683]
[1760331830304,0.72,195.78,195.75,5.10855683]
[1760331832605,20.8,195.76,195.7,5.10986203]
[1760331832788,0.72,195.75,195.7,5.10986203]
[1760331832988,20.8,195.76,195.7,5.10986203]
[1760331833179,0.72,195.75,195.7,5.10986203]
[1760331833591,0.72,195.75,195.7,11.20514376]
[1760331834102,0.72,195.75,195.71,11.20514376]
[1760331834300,21.52,195.75,195.71,11.20514376]
[1760331835083,20.8,195.75,195.69,17.88543103]
[1760331835297,0.72,195.74,195.69,95.71808321]
[1760331835500,20.8,195.76,195.67,84.51321735]
[1760331835501,0.72,195.73,195.67,84.51321735]
[1760331835689,0.72,195.73,195.67,95.71836111]
[1760331835888,0.72,195.73,195.67,84.51321735]
[1760331836302,20.8,195.7,195.66,0.2]
[1760331836497,21.52,195.7,195.66,5.31087585]
[1760331836904,10.87647521,195.75,195.67,11.20514376]
[1760331836905,21.52,195.72,195.67,11.20514376]
[1760331837107,21.52,195.72,195.67,11.90514376]
[1760331837406,21.52,195.72,195.67,0.7]
[1760331837600,20.8,195.73,195.7,11.20514376]
[1760331837792,21.52,195.73,195.7,5.10983223]
[1760331837992,0.72,195.73,195.7,5.10983223]
[1760331839209,0.72,195.73,195.7,16.31497599]
[1760331839898,25.90856717,195.75,195.7,5.10983223]
[1760331840101,0.72,195.72,195.69,5.11010204]
[1760331840609,21.52,195.75,195.7,11.20514376]
[1760331840793,20.8,195.75,195.7,11.90514376]
[1760331840993,0.72,195.74,195.7,11.20514376]
[1760331841415,0.72,195.73,195.69,5.11010204]
[1760331841990,0.72,195.73,195.68,16.31552806]
[1760331842200,0.72,195.73,195.68,17.01552806]
[1760331842595,0.09456301,195.79,195.72,11.20514376]
[1760331842790,0.81456301,195.79,195.74,11.20514376]
[1760331842993,0.72,195.78,195.73,11.20514376]
[1760331843213,0.72,195.77,195.72,80.4]
[1760331843509,0.72,195.76,195.72,91.60514376]
[1760331843718,0.81456301,195.79,195.74,11.20514376]
[1760331843905,21.61456301,195.79,195.75,16.31370059]
[1760331844105,0.09456301,195.79,195.77,11.20514376]
[1760331844302,0.09456301,195.79,195.75,96.71370059]
[1760331844500,0.09456301,195.79,195.76,11.90514376]
[1760331844702,0.09456301,195.79,195.78,11.20514376]
[1760331845113,0.09456301,195.79,195.78,11.90514376]
[1760331845996,0.09456301,195.79,195.78,97.41291779]
[1760331846419,0.1030635,195.8,195.78,27.889393]
[1760331846721,0.1030635,195.8,195.79,11.90514376]
[1760331848425,0.21248146,195.8,195.79,17.01265691]
[1760331848806,1e-08,195.8,195.79,27.88913212]
[1760331849008,1e-08,195.8,195.79,17.01265691]
[1760331849202,1e-08,195.8,195.79,5.10751315]
[1760331849400,1e-08,195.8,195.78,11.20514376]
[1760331850018,1e-08,195.8,195.75,29.08509267]
[1760331850211,1e-08,195.8,195.76,11.20514376]
[1760331850401,1e-08,195.8,195.78,5.10777403]
[1760331851700,1e-08,195.8,195.75,12.77139208]
[1760331851701,20.80000001,195.8,195.75,11.20514376]
[1760331851907,20.80000001,195.8,195.76,11.20514376]
[1760331852104,20.80000001,195.8,195.7,15.98633724]
[1760331852420,0.72,195.79,195.72,11.20514376]
[1760331852821,0.72,195.78,195.72,11.20514376]
[1760331853127,0.72,195.77,195.7,11.20514376]
[1760331853308,0.72,195.76,195.68,16.31552806]
[1760331853508,5.10881781,195.74,195.68,16.31552806]
[1760331853832,0.68,195.73,195.68,16.31552806]
[1760331854236,20.8,195.71,195.66,5.3106488]
[1760331854419,21.48,195.71,195.66,17.22579256]
[1760331854621,21.48,195.71,195.67,11.20514376]
[1760331855331,0.68,195.71,195.67,11.20514376]
[1760331855515,0.68,195.71,195.67,16.3157448]
[1760331855716,0.68,195.7,195.66,0.2]
[1760331856016,20.8,195.69,195.66,5.31084191]
[1760331856211,20.8,195.69,195.67,11.91514376]
[1760331856431,20.8,195.69,195.67,11.20514376]
[1760331857330,25.90936378,195.72,195.67,11.20514376]
[1760331857537,0.68,195.71,195.67,11.20514376]
[1760331858622,20.8,195.7,195.67,16.31575094]
[1760331859334,0.68,195.73,195.68,11.20514376]
[1760331859536,20.8,195.71,195.68,16.31548914]
[1760331860214,25.90831002,195.76,195.7,11.20514376]
[1760331860414,26.58831002,195.76,195.7,11.20514376]
[1760331860718,0.68,195.75,195.68,85.51034538]
[1760331860927,0.68,195.74,195.66,0.2]
[1760331861738,5.10907883,195.73,195.66,16.51598046]
[1760331861938,0.68,195.72,195.66,16.51598046]
[1760331862108,0.68,195.72,195.67,11.20514376]
[1760331862312,21.48,195.72,195.67,11.20514376]